bitfinex/quotes_SOLUSD_20240615
["timestamp","ask_amount","ask_price","bid_price","bid_amount"]
[1718489796415,5.61,144.84,144.78,20.0]
[1718489796616,8.1645,144.84,144.78,25.61]
[1718489796901,5.61,144.84,144.78,25.61]
[1718489797109,5.61,144.84,144.78,20.0]
[1718489797314,5.61,144.84,144.78,25.61]
[1718489797782,8.1645,144.84,144.78,25.61]
[1718489797985,5.61,144.84,144.78,20.0]
[1718489798314,5.61,144.84,144.78,25.61]
[1718489798487,5.61,144.84,144.77,16.4054]
[1718489798488,8.0043,144.83,144.77,16.4054]
[1718489798696,5.61,144.82,144.77,16.4054]
[1718489799510,5.61,144.82,144.77,22.0154]
[1718489800203,0.34,144.81,144.77,16.4054]
[1718489800404,5.95,144.81,144.77,16.4054]
[1718489800794,0.34,144.81,144.77,16.4054]
[1718489800998,5.78,144.81,144.77,16.4054]
[1718489803007,0.34,144.8,144.73,23.3947918]
[1718489803215,0.34,144.8,144.74,20.0]
[1718489803413,0.34,144.8,144.74,25.61]
[1718489805106,0.34,144.8,144.74,20.0]
[1718489805312,0.34,144.8,144.74,25.61]
[1718489805615,5.95,144.8,144.75,5.61]
[1718489808797,5.95,144.8,144.74,20.0]
[1718489808986,5.95,144.8,144.75,5.61]
[1718489811689,0.17,144.81,144.74,20.0]
[1718489811890,6.12,144.82,144.76,5.61]
[1718489812584,28.81722807,144.84,144.77,5.61]
[1718489812789,28.09132807,144.84,144.78,5.61]
[1718489813006,20.9011,144.84,144.78,5.61]
[1718489813290,7.6627,144.86,144.78,5.61]
[1718489813495,20.0,144.85,144.78,5.61]
[1718489813694,5.61,144.85,144.79,5.61]
[1718489813895,5.61,144.86,144.8,5.61]
[1718489814606,5.61,144.87,144.81,5.61]
[1718489816220,8.164,144.87,144.81,5.61]
[1718489816713,7.18712375,144.9,144.83,5.61]
[1718489816902,13.272,144.87,144.81,5.61]
[1718489817113,5.61,144.86,144.81,5.61]
[1718489818419,5.78,144.87,144.81,5.61]
[1718489818805,0.51,144.88,144.82,5.61]
[1718489819007,5.95,144.88,144.82,5.61]
[1718489819424,0.17,144.88,144.83,5.61]
[1718489819609,5.61,144.88,144.83,5.61]
[1718489820226,22.9813,144.9,144.83,5.61]
[1718489820425,8.1635,144.9,144.84,5.61]
[1718489820611,5.61,144.9,144.84,5.61]
[1718489821636,8.1635,144.9,144.85,5.61]
[1718489822427,5.61,144.9,144.85,5.61]
[1718489822605,8.1634,144.9,144.85,5.61]
[1718489825108,2.5534,144.9,144.85,5.61]
[1718489825304,30.16408876,144.93,144.84,6.1386]
[1718489825506,2.5531,144.92,144.87,5.61]
[1718489825715,15.9928,144.95,144.87,5.61]
[1718489825931,2.5531,144.92,144.87,5.61]
[1718489826132,7.6593,144.92,144.87,5.61]
[1718489826639,8.1631,144.92,144.87,5.61]
[1718489827022,5.61,144.92,144.87,5.61]
[1718489829046,5.95,144.93,144.87,5.61]
[1718489829939,5.78,144.95,144.89,5.61]
[1718489831042,8.3326,144.95,144.89,5.61]
[1718489831240,5.78,144.95,144.89,5.61]
[1718489831540,8.3326,144.95,144.89,5.61]
[1718489832244,13.4378,144.95,144.89,5.61]
[1718489832628,21.0956,144.95,144.89,5.61]
[1718489833009,2.5527,144.94,144.89,5.61]
[1718489833530,8.1627,144.94,144.89,5.61]
[1718489834537,13.2683,144.94,144.89,5.61]
[1718489834717,13.2682,144.94,144.89,5.61]
[1718489835645,8.1627,144.94,144.89,5.61]
[1718489836443,5.61,144.94,144.89,5.61]
[1718489836643,8.1628,144.94,144.89,5.61]
[1718489841059,5.61,144.94,144.89,5.61]
[1718489842926,5.61,144.91,144.85,25.61]
[1718489843238,8.6729,144.93,144.87,5.61]
[1718489843431,6.12,144.93,144.87,5.61]
[1718489843633,8.1629,144.94,144.88,5.61]
[1718489843833,5.61,144.94,144.88,5.61]
[1718489844044,8.1627,144.94,144.88,5.61]
[1718489845740,5.61,144.94,144.88,5.61]
[1718489846054,8.1627,144.94,144.88,5.61]
[1718489846641,5.61,144.94,144.88,5.61]
[1718489847434,8.1627,144.94,144.88,5.61]
[1718489847637,13.2682,144.94,144.88,5.61]
[1718489850863,7.6595,144.92,144.85,20.0]
[1718489851162,13.2693,144.92,144.86,5.61]
[1718489851374,13.2693,144.92,144.87,5.61]
[1718489851747,7.35731562,144.94,144.87,5.61]
[1718489851932,0.51,144.93,144.87,5.61]
[1718489853264,3.0629,144.93,144.87,5.61]
[1718489853844,0.51,144.93,144.87,5.61]
[1718489854045,3.0629,144.93,144.87,5.61]
[1718489854252,8.1688,144.93,144.87,5.61]
[1718489855265,3.0629,144.93,144.87,5.61]
[1718489855965,0.17,144.93,144.88,5.61]
[1718489856148,8.3329,144.94,144.88,5.61]
[1718489856673,5.78,144.94,144.88,5.61]
[1718489857584,8.3327,144.94,144.88,5.61]
[1718489857762,5.78,144.94,144.88,5.61]
[1718489857961,0.17,144.94,144.89,5.61]
[1718489858169,0.51,144.94,144.89,5.61]
[1718489859453,3.0627,144.94,144.89,5.61]
[1718489859750,0.51,144.94,144.89,5.61]
[1718489860088,3.0627,144.94,144.89,5.61]
[1718489860458,8.1682,144.94,144.89,5.61]
[1718489862057,26.0376,144.94,144.89,5.61]
[1718489862461,25.8676,144.94,144.89,5.61]
[1718489862984,2.5529,144.93,144.89,5.61]
[1718489863291,2.5529,144.93,144.88,5.61]
[1718489863981,31.4778,144.94,144.88,5.61]
[1718489866490,7.9984,144.94,144.88,5.61]
[1718489866786,13.6084,144.94,144.88,5.61]
[1718489867189,21.2667,144.94,144.88,5.61]
[1718489868064,13.6084,144.94,144.88,5.61]
[1718489870066,8.5029,144.94,144.88,5.61]
[1718489872004,13.6085,144.94,144.88,5.61]
[1718489872889,8.5029,144.94,144.88,5.61]
[1718489873484,2.8929,144.94,144.89,5.61]
[1718489873685,2.5527,144.95,144.89,5.61]
[1718489874002,20.9248,144.96,144.9,5.61]
[1718489874374,7.6575,144.96,144.91,5.61]
[1718489874699,7.6573,144.96,144.91,5.61]
[1718489876003,2.5526,144.95,144.9,5.61]
[1718489876388,8.1626,144.95,144.9,5.61]
[1718489876973,5.61,144.95,144.9,5.61]
[1718489879308,13.2673,144.96,144.9,5.61]
[1718489880009,8.1625,144.96,144.9,5.61]
[1718489882098,5.61,144.96,144.9,5.61]
[1718489883206,13.2672,144.96,144.9,5.61]
[1718489883391,8.1624,144.96,144.9,5.61]
[1718489885307,5.61,144.96,144.9,5.61]
[1718489888888,6.12,144.97,144.91,5.61]
[1718489889796,8.6722,144.97,144.91,5.61]
[1718489890288,0.51,144.97,144.92,5.61]
[1718489890488,7.18574139,144.98,144.93,5.61]
[1718489890823,8.1618,145.0,144.94,5.61]
[1718489891312,2.5516,145.01,144.94,5.61]
[1718489891614,8.1617,145.0,144.94,5.61]
[1718489892025,13.2651,145.0,144.94,5.61]
[1718489892224,20.9202,145.0,144.94,5.61]
[1718489893802,7.18487758,145.02,144.97,5.61]
[1718489894121,31.1206,145.04,144.98,5.61]
[1718489894326,13.2633,145.04,144.98,5.61]
[1718489894518,20.9163,145.04,144.98,5.61]
[1718489894696,2.5512,145.03,144.98,5.61]
[1718489894902,25.7047,145.05,144.98,5.61]
[1718489895106,31.1203,145.04,144.98,5.61]
[1718489895307,2.5512,145.03,144.98,5.61]
[1718489895521,5.61,145.03,144.97,5.61]
[1718489895856,21.1112,145.05,144.99,5.61]
[1718489895998,15.5012,145.05,145.0,5.61]
[1718489896339,44.0688,145.05,144.94,6.6633]
[1718489896501,5.61,145.04,144.99,5.61]
[1718489896895,8.161,145.04,144.99,5.61]
[1718489897123,5.61,145.04,144.99,5.61]
[1718489897335,8.161,145.04,144.99,5.61]
[1718489897533,5.61,145.04,144.99,5.61]
[1718489898032,8.161,145.04,144.95,20.0]
[1718489898206,13.2631,145.04,144.98,5.61]
[1718489898606,8.161,145.04,144.98,5.61]
[1718489899009,5.61,145.04,144.98,5.61]
[1718489905862,5.61,145.04,144.99,5.61]
[1718489908654,5.61,145.04,144.98,5.61]
[1718489919954,5.61,145.04,144.99,5.61]
[1718489920135,21.1112,145.05,144.99,5.61]
[1718489920752,15.5012,145.05,144.99,5.61]
[1718489921255,15.5012,145.05,145.0,5.61]
[1718489923371,26.2131,145.05,144.99,5.61]
[1718489923533,28.764,145.05,144.99,5.61]
[1718489923857,5.61,145.04,144.99,5.61]
[1718489924861,8.161,145.04,144.95,20.0]
[1718489925050,8.161,145.04,144.98,5.61]
[1718489925463,5.61,145.03,144.97,5.61]
[1718489925642,5.61,145.03,144.98,20.0]
[1718489926734,5.61,145.04,144.98,25.61]
[1718489934666,8.161,145.04,144.98,20.0]
[1718489934865,5.61,145.04,144.98,5.61]
[1718489936570,5.61,145.04,144.97,5.61]
[1718489936571,5.61,145.03,144.97,5.61]
[1718489936761,5.61,145.03,144.98,20.0]
[1718489939868,5.61,145.04,144.98,25.61]
[1718489941483,5.61,145.04,144.98,20.0]
[1718489941645,41.0097,145.05,144.98,5.61]
[1718489941844,5.61,145.04,144.98,5.61]
[1718489945476,5.61,145.01,144.93,16.5224]
[1718489945775,5.61,145.01,144.95,5.61]
[1718489946365,5.61,145.02,144.96,5.61]
[1718489946572,5.78,145.03,144.97,5.61]
[1718489947875,8.3312,145.03,144.97,5.61]
[1718489948788,13.4336,145.03,144.97,5.61]
[1718489949084,8.3312,145.03,144.97,5.61]
[1718489949486,8.3312,145.03,144.93,16.3524]
[1718489949487,2.5513,145.02,144.93,16.3524]
[1718489949691,13.2641,145.02,144.96,5.61]
[1718489949868,5.61,145.0,144.93,16.3524]
[1718489950065,5.61,145.0,144.94,20.0]
[1718489950264,5.61,145.0,144.95,5.61]
[1718489950690,6.5475,145.02,144.94,20.0]
[1718489950899,5.61,144.98,144.94,20.0]
[1718489951101,5.61,144.97,144.9,6.0033]
[1718489951394,5.61,144.96,144.9,5.61]
[1718489952167,5.61,144.94,144.86,6.6417]
[1718489952382,5.61,144.94,144.89,5.61]
[1718489954571,5.61,144.95,144.89,5.61]
[1718489955993,5.61,144.95,144.86,6.6417]
[1718489956195,5.61,144.95,144.89,5.61]
[1718489956576,5.61,144.94,144.88,5.61]
[1718489956781,5.61,144.93,144.89,20.0]
[1718489957086,5.61,144.93,144.87,5.61]
[1718489957280,5.61,144.93,144.88,20.0]
[1718489957475,5.61,144.92,144.88,20.0]
[1718489957683,5.61,144.93,144.88,20.0]
[1718489957890,15.9402,144.96,144.88,20.0]
[1718489958080,15.7702,144.96,144.9,5.61]
[1718489958293,15.7702,144.96,144.91,5.61]
[1718489959192,21.3802,144.96,144.91,5.61]
[1718489960300,5.61,144.95,144.89,5.61]
[1718489964577,2.5527,144.95,144.86,20.0]
[1718489964897,5.61,144.93,144.88,5.61]
[1718489965082,5.61,144.93,144.87,5.61]
[1718489965409,5.61,144.93,144.88,20.0]
[1718489965704,5.61,144.92,144.88,20.0]
[1718489966902,5.61,144.92,144.87,5.61]
[1718489968207,5.61,144.92,144.86,5.61]
[1718489969211,5.61,144.91,144.86,5.61]
[1718489969399,5.61,144.92,144.86,5.61]
[1718489969601,18.0388,144.95,144.87,5.61]
[1718489969806,5.61,144.92,144.86,5.61]
[1718489970802,5.61,144.92,144.85,15.8402]
[1718489971116,5.61,144.92,144.86,20.0]
[1718489971408,5.61,144.93,144.86,20.0]
[1718489973315,5.61,144.94,144.88,5.61]
[1718489973505,5.61,144.94,144.86,20.0]
[1718489973690,8.1626,144.95,144.89,5.61]
[1718489973891,5.61,144.95,144.89,5.61]
[1718489975292,15.7702,144.96,144.89,5.61]
[1718489975604,5.61,144.95,144.89,5.61]
[1718489976423,5.61,144.95,144.9,5.61]
[1718489979431,31.0847,144.96,144.9,5.61]
[1718489979595,5.61,144.95,144.9,5.61]
[1718489980512,8.1626,144.95,144.9,5.61]
[1718489981610,5.61,144.95,144.9,5.61]
[1718489981902,8.1626,144.95,144.9,5.61]
[1718489983032,2.5526,144.95,144.9,5.61]
[1718489983324,8.1626,144.95,144.9,5.61]
[1718489984328,8.1626,144.95,144.89,5.61]
[1718489984811,8.1626,144.95,144.86,20.0]
[1718489985130,8.1626,144.95,144.89,5.61]
[1718489985349,24.7539,144.97,144.89,5.61]
[1718489985637,2.5522,144.97,144.9,41.9439]
[1718489985815,8.1622,144.97,144.91,5.61]
[1718489986515,13.2667,144.97,144.91,5.61]
[1718489986723,31.1345,144.96,144.9,41.9439]
[1718489986923,5.61,144.95,144.9,36.3339]
[1718489987124,8.1626,144.95,144.9,36.3339]
[1718489987325,5.61,144.94,144.9,36.3339]
[1718489989751,25.5232,144.97,144.9,36.3339]
[1718489989925,5.61,144.95,144.9,36.3339]
[1718489990122,5.61,144.94,144.9,20.0]
[1718489990337,5.61,144.94,144.89,20.0]
[1718489993546,5.61,144.93,144.89,20.0]
[1718489993730,5.61,144.93,144.88,20.0]
[1718489996541,5.61,144.92,144.87,20.0]
[1718489999125,5.61,144.91,144.86,5.61]
[1718489999324,5.61,144.91,144.87,20.0]
[1718489999935,5.61,144.91,144.85,5.61]
[1718489999936,5.61,144.91,144.86,20.0]
[1718490000441,5.61,144.92,144.86,25.61]
[1718490001959,5.61,144.89,144.82,22.0411746]
[1718490002258,5.61,144.88,144.82,20.9081]
[1718490002431,5.61,144.87,144.82,15.2981]
[1718490002838,5.61,144.88,144.82,20.9081]
[1718490004035,5.61,144.88,144.83,20.0]
[1718490005130,5.61,144.89,144.83,25.61]
[1718490005546,6.0633,144.92,144.83,25.61]
[1718490005547,6.0633,144.92,144.86,5.61]
[1718490005826,5.61,144.93,144.87,5.61]
[1718490007978,5.61,144.92,144.87,5.61]
[1718490009267,5.61,144.93,144.87,5.61]
[1718490010584,5.61,144.93,144.84,0.17]
[1718490010782,7.6599,144.91,144.84,0.34]
[1718490010941,7.6599,144.91,144.83,26.0519]
[1718490010942,5.61,144.89,144.83,26.0519]
[1718490011151,20.9323,144.89,144.83,20.0]
[1718490011361,5.61,144.88,144.83,20.0]
[1718490012257,32.1513,144.91,144.83,25.61]
[1718490012258,5.61,144.89,144.83,25.61]
[1718490013666,5.61,144.88,144.83,20.0]
[1718490015175,2.7234,144.9,144.83,20.0]
[1718490015499,5.61,144.88,144.83,20.0]
[1718490019287,5.61,144.86,144.83,20.0]
[1718490019467,5.61,144.85,144.8,20.0]
[1718490021584,5.61,144.86,144.8,25.61]
[1718490022586,21.3614,144.9,144.8,25.61]
[1718490022800,21.3614,144.9,144.82,5.61]
[1718490022801,5.61,144.88,144.82,5.61]
[1718490022974,5.61,144.88,144.83,5.61]
[1718490023309,6.6172,144.91,144.85,5.61]
[1718490023507,7.18570911,144.93,144.85,5.61]
[1718490023688,15.5814,144.94,144.86,25.61]
[1718490024000,5.61,144.92,144.86,25.61]
[1718490024499,5.61,144.93,144.87,5.61]
[1718490025879,0.17,144.94,144.87,5.61]
[1718490026076,5.61,144.93,144.87,5.61]
[1718490026493,5.61,144.92,144.86,25.61]
[1718490027080,5.61,144.92,144.86,20.0]
[1718490029198,5.61,144.91,144.86,20.0]
[1718490030884,5.61,144.92,144.86,25.61]
[1718490031419,5.61,144.91,144.86,25.61]
[1718490031896,5.61,144.91,144.86,20.0]
[1718490032316,5.61,144.92,144.86,25.61]
[1718490032828,45.20432517,144.97,144.88,5.61]
[1718490033116,15.5814,144.97,144.9,5.61]
[1718490033512,5.61,144.95,144.9,5.61]
[1718490035400,7.6566,144.98,144.9,5.61]
[1718490035621,5.61,144.96,144.9,5.61]
[1718490036201,2.5522,144.98,144.9,5.61]
[1718490036402,5.61,144.96,144.9,5.61]
[1718490036734,0.17,144.99,144.91,5.61]
[1718490037025,5.61,144.99,144.93,5.61]
[1718490038323,5.61,144.99,144.94,1.37768952]
[1718490038518,5.61,144.98,144.94,1.37768952]
[1718490038712,5.61,144.96,144.92,20.0]
[1718490038915,5.61,144.96,144.91,5.61]
[1718490039102,5.61,144.97,144.92,20.0]
[1718490039902,8.1622,144.97,144.92,20.0]
[1718490040445,5.61,144.97,144.92,20.0]
[1718490041117,0.17,144.98,144.89,21.603]
[1718490041307,5.61,144.94,144.89,21.603]
[1718490042032,7.6572,144.96,144.89,21.603]
[1718490042033,5.61,144.95,144.89,27.213]
[1718490042536,5.61,144.95,144.9,20.0]
[1718490043128,5.61,144.95,144.9,25.61]
[1718490043310,5.61,144.95,144.9,20.0]
[1718490044533,5.61,144.94,144.9,20.0]
[1718490044714,5.61,144.94,144.89,21.603]
[1718490047627,5.61,144.91,144.85,27.213]
[1718490047945,5.61,144.91,144.86,20.0]
[1718490053731,5.61,144.91,144.86,25.61]
[1718490054052,5.61,144.92,144.86,20.0]
[1718490054357,22.46766724,144.96,144.89,5.61]
[1718490054532,5.61,144.95,144.89,5.61]
[1718490054728,5.61,144.94,144.89,5.61]
[1718490055060,17.8379,144.96,144.88,5.61]
[1718490055252,5.61,144.93,144.88,5.61]
[1718490055458,5.61,144.93,144.86,20.0]
[1718490055459,5.61,144.92,144.87,5.61]
[1718490056033,5.61,144.91,144.86,20.0]
[1718490056454,5.61,144.92,144.86,25.61]
[1718490056656,5.61,144.93,144.87,5.61]
[1718490057340,6.4186,144.97,144.91,5.61]
[1718490057728,12.0286,144.97,144.91,5.61]
[1718490057928,5.61,144.96,144.91,5.61]
[1718490058157,6.4186,144.97,144.91,5.61]
[1718490058334,5.61,144.95,144.86,20.17]
[1718490058666,5.61,144.94,144.88,5.61]
[1718490058870,5.61,144.93,144.89,20.0]
[1718490059429,5.61,144.93,144.88,5.61]
[1718490059635,5.61,144.93,144.89,20.0]
[1718490060556,19.6856,144.97,144.89,20.0]
[1718490060557,5.61,144.95,144.89,25.61]
[1718490060938,5.61,144.95,144.9,0.45804158]
[1718490064451,5.61,144.96,144.91,5.61]
[1718490064672,5.61,144.96,144.92,0.45806708]
[1718490064980,5.61,144.96,144.91,5.61]
[1718490065168,5.61,144.96,144.9,22.2507]
[1718490069065,2.7221,144.98,144.9,22.2507]
[1718490069271,5.61,144.96,144.9,22.2507]
[1718490070478,5.61,144.96,144.91,5.61]
[1718490073266,5.61,144.95,144.9,28.4873]
[1718490073677,5.61,144.95,144.9,22.8773]
[1718490077186,5.61,144.95,144.9,28.4873]
[1718490077685,5.61,144.96,144.9,28.4873]
[1718490084373,5.61,144.95,144.9,22.8773]
[1718490088491,5.61,144.94,144.9,16.6407]
[1718490099819,5.61,144.95,144.9,16.6407]
[1718490104733,5.61,144.97,144.91,5.61]
[1718490108826,8.1622,144.97,144.91,5.61]
[1718490110910,13.2667,144.97,144.91,5.61]
[1718490111110,5.61,144.96,144.91,5.61]
[1718490116233,8.1621,144.98,144.92,5.61]
[1718490116433,5.61,144.97,144.92,5.61]
[1718490119515,5.61,144.97,144.91,5.61]
[1718490120412,7.6562,144.98,144.91,5.61]
[1718490120640,5.61,144.97,144.91,5.61]
[1718490120817,15.3124,144.98,144.91,5.61]
[1718490121014,5.61,144.97,144.91,5.61]
[1718490122128,13.2669,144.97,144.91,5.61]
[1718490122323,5.61,144.96,144.9,28.4501]
[1718490123948,2.5523,144.97,144.9,28.4501]
[1718490124125,5.61,144.96,144.9,28.4501]
[1718490126336,5.61,144.98,144.92,5.61]
[1718490127034,15.312,144.99,144.92,5.61]
[1718490127230,5.61,144.98,144.92,5.61]
[1718490127434,5.61,144.98,144.93,1.37750259]
[1718490127950,7.6558,144.99,144.93,1.37750259]
[1718490128157,8.1616,145.01,144.94,21.9842]
[1718490128355,13.2647,145.01,144.95,5.61]
[1718490128654,13.2647,145.01,144.96,1.37944997]
[1718490129153,20.9193,145.01,144.96,1.37944997]
[1718490130327,20.9193,145.01,144.95,5.61]
[1718490130529,8.1617,145.0,144.95,5.61]
[1718490131469,7.6547,145.01,144.95,5.61]
[1718490131638,5.61,145.0,144.95,5.61]
[1718490132259,5.61,145.01,144.95,5.61]
[1718490132561,8.1613,145.02,144.97,5.61]
[1718490132721,13.264,145.02,144.97,5.61]
[1718490132925,20.9181,145.02,144.97,5.61]
[1718490133539,13.264,145.02,144.96,25.61]
[1718490134856,5.61,145.01,144.96,25.61]
[1718490137146,5.61,145.02,144.96,25.61]
[1718490139965,2.5511,145.04,144.97,5.61]
[1718490140270,5.61,145.03,144.97,5.61]
[1718490141274,5.61,145.03,144.98,16.1621]
[1718490141445,5.61,145.03,144.98,21.7721]
[1718490142167,8.161,145.04,144.98,21.7721]
[1718490142349,5.61,145.04,144.98,21.7721]
[1718490142769,5.61,145.04,144.99,5.61]
[1718490143368,8.161,145.04,144.99,5.61]
[1718490143572,8.161,145.04,144.98,21.7721]
[1718490143738,20.9161,145.04,144.98,21.7721]
[1718490144145,13.2631,145.04,144.98,21.7721]
[1718490144575,20.9161,145.04,144.98,21.7721]
[1718490144770,8.161,145.04,144.98,21.7721]
[1718490145159,5.61,145.03,144.98,21.7721]
[1718490146985,5.61,145.03,144.98,16.1621]
[1718490146986,8.1612,145.03,144.98,16.1621]
[1718490147275,13.2636,145.03,144.98,16.1621]
[1718490147488,5.61,145.02,144.98,16.1621]
[1718490149479,13.2636,145.03,144.98,16.1621]
[1718490149665,8.1612,145.03,144.98,16.1621]
[1718490151375,5.61,145.03,144.98,16.1621]
[1718490151586,8.1611,145.03,144.98,16.1621]
[1718490152402,5.61,145.03,144.98,16.1621]
[1718490152989,8.1612,145.03,144.98,16.1621]
[1718490156776,2.5512,145.03,144.98,21.7721]
[1718490159108,15.3072,145.03,144.98,16.1621]
[1718490159405,13.2646,145.01,144.98,16.1621]
[1718490159580,28.574,145.01,144.96,20.0]
[1718490159778,31.1256,145.01,144.96,20.0]
[1718490159983,5.61,145.0,144.96,20.0]
[1718490160608,8.162,144.99,144.94,22.9573]
[1718490160901,5.61,144.98,144.94,22.9573]
[1718490161572,5.61,144.99,144.94,22.9573]
[1718490162010,5.61,144.99,144.94,28.5673]
[1718490162307,5.61,145.0,144.94,28.5673]
[1718490163391,8.1617,145.0,144.94,28.5673]
[1718490163588,5.61,145.0,144.94,28.5673]
[1718490163792,5.61,145.0,144.95,5.61]
[1718490164583,8.1616,145.01,144.95,5.61]
[1718490165781,13.2647,145.01,144.95,5.61]
[1718490166313,8.1616,145.01,144.95,5.61]
[1718490166517,13.2646,145.01,144.95,5.61]
[1718490167120,2.5516,145.01,144.95,5.61]
[1718490167511,8.1616,145.01,144.95,5.61]
[1718490168222,13.2647,145.01,144.95,5.61]
[1718490170032,8.1616,145.01,144.95,5.61]
[1718490174222,5.61,145.01,144.95,5.61]
[1718490174439,7.17465191,145.04,144.94,22.9573]
[1718490174730,7.17465191,145.04,144.98,5.61]
[1718490174731,28.5693,145.04,144.98,5.61]
[1718490174931,2.5512,145.03,144.98,5.61]
[1718490175511,7.6535,145.03,144.98,5.61]
[1718490177413,15.3071,145.03,144.98,5.61]
[1718490179111,31.1208,145.04,144.98,5.61]
[1718490179534,7.6533,145.04,144.98,5.61]
[1718490179733,15.3063,145.04,144.98,5.61]
[1718490180236,7.6536,145.03,144.98,5.61]
[1718490180706,31.1207,145.04,144.98,5.61]
[1718490181713,25.509,145.05,144.98,5.61]
[1718490181941,25.509,145.05,144.99,16.526]
[1718490181942,2.5509,145.05,144.99,16.526]
[1718490182114,31.1185,145.05,144.99,16.526]
[1718490182438,13.2627,145.05,144.99,22.136]
[1718490183543,8.1609,145.05,144.99,22.136]
[1718490184039,8.1609,145.05,145.0,5.61]
[1718490184432,13.2626,145.05,145.0,5.61]
[1718490184734,8.1609,145.05,145.0,5.61]
[1718490186527,7.33759058,145.09,144.99,16.526]
[1718490186749,31.1153,145.07,145.01,5.61]
[1718490186955,26.0142,145.07,145.01,5.61]
[1718490187135,12.7508,145.09,145.02,5.61]
[1718490187336,5.61,145.08,144.99,16.526]
[1718490187555,8.1603,145.08,145.03,5.61]
[1718490187854,13.2609,145.08,145.03,5.61]
[1718490188351,13.2609,145.08,145.0,20.0]
[1718490188658,13.2609,145.08,145.03,5.61]
[1718490189532,5.61,145.08,145.03,21.4723]
[1718490189737,15.301,145.09,145.03,21.4723]
[1718490189960,5.61,145.08,145.03,15.8623]
[1718490190462,20.911,145.09,145.03,21.4723]
[1718490190755,31.1116,145.09,145.03,21.4723]
[1718490191134,7.6494,145.11,145.03,15.8623]
[1718490191334,20.9088,145.11,145.05,5.61]
[1718490191943,2.5499,145.1,145.05,5.61]
[1718490193454,2.5501,145.09,145.04,5.61]
[1718490193864,31.1098,145.1,145.04,5.61]
[1718490194253,7.16286373,145.15,145.03,15.8623]
[1718490194254,8.1603,145.08,145.03,15.8623]
[1718490194445,5.61,145.08,145.03,15.8623]
[1718490194762,5.61,145.08,145.03,21.4723]